bitfinex-derivatives/quotes_SOLF0:USTF0_20250227
["timestamp","ask_amount","ask_price","bid_price","bid_amount"]
[1740646222102,5.0185,139.6,139.57,0.04828035]
[1740646222503,13.07216258,139.62,139.57,0.04828035]
[1740646222704,5.0183,139.6,139.57,0.04828035]
[1740646223805,5.0186,139.59,139.57,0.04828035]
[1740646225497,115.93227687,139.63,139.57,0.04828035]
[1740646225701,1.05960789,139.62,139.57,0.04828035]
[1740646226806,14.60801882,139.62,139.57,0.04828035]
[1740646227105,13.54841093,139.62,139.57,0.04828035]
[1740646227405,18.56611093,139.62,139.58,5.0188]
[1740646227593,18.56611093,139.62,139.57,0.04828035]
[1740646227796,13.54841093,139.63,139.57,0.04828035]
[1740646228000,5.0179,139.61,139.57,5.06728035]
[1740646228203,13.54841093,139.63,139.57,0.04828035]
[1740646228506,5.0188,139.59,139.57,0.04828035]
[1740646229202,5.0189,139.58,139.57,0.04828035]
[1740646230802,3.7453,139.63,139.57,0.04828035]
[1740646231107,1.05999148,139.62,139.57,0.04828035]
[1740646231704,5.0182,139.6,139.57,0.04828035]
[1740646232002,3.7453,139.63,139.57,0.04828035]
[1740646232208,6.07769114,139.62,139.57,0.04828035]
[1740646232408,5.0177,139.62,139.57,0.04828035]
[1740646234405,3.7453,139.63,139.57,0.04828035]
[1740646234607,1.0598922,139.62,139.57,5.06748035]
[1740646234801,115.93227687,139.64,139.58,2.68758307]
[1740646235011,5.0172,139.63,139.57,0.04828035]
[1740646235309,115.93227687,139.64,139.58,2.68734448]
[1740646235509,120.94917687,139.64,139.59,2.68734448]
[1740646235804,120.94917687,139.64,139.6,2.68734448]
[1740646236004,115.93227687,139.64,139.6,0.05331701]
[1740646236204,115.93227687,139.64,139.61,2.68718207]
[1740646236408,115.93227687,139.64,139.61,5.0178]
[1740646236805,115.93227687,139.64,139.6,0.05331701]
[1740646237005,5.0171,139.63,139.6,5.07151701]
[1740646237199,5.0171,139.63,139.6,0.05331701]
[1740646237509,115.93227687,139.64,139.6,0.05331701]
[1740646237710,120.94917687,139.64,139.6,0.05331701]
[1740646238112,120.94917687,139.64,139.6,5.07141701]
[1740646238904,5.0165,139.65,139.6,5.07141701]
[1740646239711,5.0165,139.65,139.61,5.0178]
[1740646240211,5.0165,139.65,139.6,0.05331701]
[1740646240412,5.0165,139.65,139.62,5.0174]
[1740646240907,70.46666089,139.66,139.62,5.0174]
[1740646241103,75.48286089,139.66,139.62,5.0174]
[1740646241308,75.48286089,139.66,139.63,5.0171]
[1740646241708,5.0162,139.66,139.63,0.04867051]
[1740646243511,1.43184421,139.68,139.54,4.75350281]
[1740646243706,1.43184421,139.68,139.49,1.8991]
[1740646243707,13.0318,139.65,139.49,1.8991]
[1740646243907,4.43113542,139.64,139.5,2.68017635]
[1740646244107,2.491938,139.63,139.49,1.8991]
[1740646244305,5.0196,139.57,139.5,2.68011382]
[1740646244617,1.43235694,139.63,139.49,11.76441972]
[1740646244814,0.04867051,139.55,139.52,0.05308167]
[1740646245114,5.0199,139.56,139.49,9.86531972]
[1740646245313,0.04867051,139.55,139.52,0.0478012]
[1740646246518,0.04867051,139.55,139.49,9.86531972]
[1740646246812,0.04867051,139.55,139.45,199.8494331]
[1740646247004,5.0207,139.53,139.46,2.68011932]
[1740646247205,5.0207,139.53,139.45,2.36576013]
[1740646247614,0.05278311,139.5,139.48,0.04646226]
[1740646252012,0.05278311,139.5,139.4,5.9188]
[1740646252217,5.0232,139.47,139.41,2.67595009]
[1740646252517,5.0232,139.47,139.4,5.9188]
[1740646252713,3.8382,139.5,139.41,2.67370886]
[1740646252918,3.8382,139.5,139.4,5.9188]
[1740646253216,3.8382,139.5,139.44,0.05269944]
[1740646253217,0.04590922,139.46,139.44,0.05269944]
[1740646255829,5.06940922,139.46,139.44,0.05269944]
[1740646256018,0.04590922,139.46,139.44,0.05269944]
[1740646260112,5.06920922,139.46,139.44,0.05269944]
[1740646261119,5.0236,139.45,139.44,0.05269944]
[1740646263226,0.04590922,139.46,139.44,0.05269944]
[1740646264729,11.2,139.54,139.44,0.05269944]
[1740646264929,1.05874188,139.53,139.44,0.05269944]
[1740646265126,1.05874188,139.53,139.39,11.2]
[1740646265329,11.2,139.54,139.4,2.65750742]
[1740646265527,11.2,139.54,139.39,206.2]
[1740646265725,5.0217,139.51,139.4,2.65705484]
[1740646266028,0.05338696,139.48,139.45,0.04735879]
[1740646266421,0.05338696,139.48,139.46,5.023]
[1740646266828,0.05338696,139.48,139.45,0.04735879]
[1740646267026,0.05338696,139.48,139.45,5.07065879]
[1740646267823,0.05338696,139.48,139.45,0.04735879]
[1740646268028,0.05338696,139.48,139.46,5.0232]
[1740646269235,11.2,139.54,139.46,5.0232]
[1740646269533,5.0214,139.51,139.46,5.0232]
[1740646269726,11.2,139.54,139.46,5.0232]
[1740646269924,5.0213,139.52,139.46,5.0232]
[1740646270126,11.2,139.54,139.46,5.0232]
[1740646270630,0.04363779,139.51,139.49,0.04868439]
[1740646273541,0.04363779,139.51,139.49,5.07068439]
[1740646276745,0.04363779,139.51,139.49,0.04868439]
[1740646277044,0.04363779,139.51,139.5,5.0218]
[1740646278541,0.04363779,139.51,139.49,0.04868439]
[1740646278745,0.04363779,139.51,139.49,5.07078439]
[1740646279042,21.54363779,139.51,139.34,234.46127888]
[1740646279237,11.4,139.53,139.34,234.46127888]
[1740646279238,4.96945395,139.5,139.36,5.0265]
[1740646279443,1.05795395,139.49,139.36,5.0265]
[1740646279846,5.0239,139.45,139.36,5.0265]
[1740646280146,0.04639667,139.44,139.41,0.04568017]
[1740646283552,1.9448,139.5,139.41,0.04568017]
[1740646283850,139.86571414,139.53,139.42,5.0246]
[1740646284044,1.05871941,139.52,139.43,3.9671]
[1740646284244,5.0218,139.5,139.43,3.9671]
[1740646284744,0.04592551,139.48,139.45,0.05447081]
[1740646286947,11.4,139.56,139.46,5.0232]
[1740646287248,1.05899046,139.55,139.43,3.9671]
[1740646287448,1.05899046,139.55,139.44,2.67237299]
[1740646287748,5.0207,139.53,139.47,5.0228]
[1740646288151,5.0207,139.53,139.49,0.05304544]
[1740646291050,5.0205,139.54,139.49,5.07504544]
[1740646294052,5.0201,139.55,139.5,5.0217]
[1740646294451,5.0201,139.55,139.51,0.04975127]
[1740646295659,2.0359,139.57,139.51,0.04975127]
[1740646295860,6.07874804,139.56,139.51,5.07115127]
[1740646296057,2.0359,139.57,139.51,5.07115127]
[1740646296262,1.05915151,139.56,139.51,5.07115127]
[1740646296862,5.0197,139.56,139.51,5.07115127]
[1740646298461,2.0359,139.57,139.51,0.04975127]
[1740646298765,5.0202,139.55,139.51,0.04975127]
[1740646301164,2.0038,139.62,139.51,0.04975127]
[1740646301355,1.05942893,139.61,139.52,7.3981945]
[1740646301559,5.0184,139.6,139.55,0.05316925]
[1740646301756,1.05942893,139.61,139.54,5.0201]
[1740646302057,2.0038,139.62,139.56,0.05484154]
[1740646302263,5.0182,139.6,139.56,0.05484154]
[1740646302864,2.0038,139.62,139.56,0.05484154]
[1740646303063,5.0181,139.61,139.56,0.05484154]
[1740646304664,5.0183,139.6,139.56,0.05484154]
[1740646304966,2.0038,139.62,139.56,5.07444154]
[1740646305163,1.05949783,139.61,139.56,5.07444154]
[1740646305364,6.07749783,139.61,139.56,0.05484154]
[1740646305559,5.018,139.61,139.56,0.05484154]
[1740646306858,7.0215,139.62,139.56,0.05484154]
[1740646307057,1.05949692,139.61,139.56,0.05484154]
[1740646307669,6.07729692,139.61,139.56,0.05484154]
[1740646307970,5.0178,139.61,139.56,0.05484154]
[1740646310370,2.0038,139.62,139.56,0.05484154]
[1740646310567,5.0182,139.6,139.56,0.05484154]
[1740646310768,1.8847,139.65,139.56,0.05484154]
[1740646310963,1.0598661,139.64,139.54,2.0462]
[1740646311165,1.0598661,139.64,139.58,0.05360575]
[1740646311861,1.0598661,139.64,139.58,5.07210575]
[1740646312067,6.9011,139.65,139.58,5.07210575]
[1740646312267,1.05991922,139.64,139.58,5.07210575]
[1740646312666,6.9011,139.65,139.59,5.0185]
[1740646313471,1.05941864,139.64,139.59,5.0185]
[1740646314364,5.0172,139.63,139.58,0.05360575]
[1740646317974,5.0175,139.62,139.58,0.05360575]
[1740646320078,1.8847,139.65,139.58,0.05360575]
[1740646320274,5.0178,139.61,139.58,0.05360575]
[1740646320479,1.8847,139.65,139.58,0.05360575]
[1740646320780,1.05851996,139.64,139.58,0.05360575]
[1740646321381,5.0176,139.62,139.58,0.05360575]
[1740646322578,1.8847,139.65,139.58,0.05360575]
[1740646322778,5.0178,139.61,139.58,0.05360575]
[1740646324079,5.0185,139.59,139.58,0.05360575]
[1740646324280,1.8847,139.65,139.5,2.0164]
[1740646324475,1.05836594,139.64,139.5,2.0164]
[1740646324680,1.05836594,139.64,139.51,2.81138601]
[1740646324876,1.8847,139.65,139.5,2.0164]
[1740646325078,1.05832355,139.64,139.5,2.0164]
[1740646325276,5.0199,139.56,139.5,7.0379]
[1740646325477,5.0199,139.56,139.51,2.81313868]
[1740646325683,5.0199,139.56,139.52,0.04955017]
[1740646325888,0.05360575,139.55,139.52,0.04955017]
[1740646326282,5.0207,139.53,139.52,0.04955017]
[1740646326481,0.05360575,139.55,139.43,1.8872]
[1740646326680,1.9889,139.54,139.44,7.31992255]
[1740646326885,5.0217,139.51,139.45,7.31992255]
[1740646327091,1.9889,139.54,139.46,2.81512295]
[1740646327282,1.893,139.53,139.43,1.9718]
[1740646327487,1.893,139.53,139.44,2.81539398]
[1740646327488,5.0225,139.49,139.44,2.81539398]
[1740646327688,1.893,139.53,139.43,1.9718]
[1740646327886,0.04624814,139.49,139.47,0.05225921]
[1740646335387,0.04624814,139.49,139.47,5.07505921]
[1740646336891,0.04624814,139.49,139.48,5.0225]
[1740646337085,0.04624814,139.49,139.48,7.83478983]
[1740646337980,5.0198,139.56,139.51,5.0213]
[1740646338185,2.0207,139.58,139.48,1.891]
[1740646338391,2.0207,139.58,139.49,4.77916232]
[1740646338591,1.05792677,139.57,139.5,5.0215]
[1740646338789,1.05792677,139.57,139.49,1.9666]
[1740646338986,2.0207,139.58,139.5,2.81191734]
[1740646339189,0.05181344,139.54,139.52,0.0514887]
[1740646341786,0.05181344,139.54,139.52,5.0722887]
[1740646343393,0.05181344,139.54,139.53,5.0207]
[1740646344295,0.05181344,139.54,139.52,5.0724887]
[1740646345392,0.05181344,139.54,139.52,0.0514887]
[1740646345595,0.05181344,139.54,139.53,5.0207]
[1740646354113,0.05181344,139.54,139.52,5.0724887]
[1740646355515,0.05181344,139.54,139.53,5.0207]
[1740646358416,0.05181344,139.54,139.53,7.83608488]
[1740646360216,0.05181344,139.54,139.53,2.81538488]
[1740646361019,0.05181344,139.54,139.53,7.83608488]
[1740646361519,5.0187,139.59,139.54,5.0203]
[1740646362020,5.0187,139.59,139.55,2.81675924]
[1740646362221,5.0187,139.59,139.54,5.0203]
[1740646362415,5.0187,139.59,139.55,2.81629577]
[1740646362614,5.0187,139.59,139.54,5.0203]
[1740646362815,5.0187,139.59,139.56,0.05446915]
[1740646365221,132.58792867,139.65,139.56,0.05446915]
[1740646365415,5.0184,139.6,139.56,0.05446915]
[1740646369522,5.0193,139.57,139.56,0.05446915]
[1740646369827,132.58792867,139.65,139.49,1.9666]
[1740646370028,132.58792867,139.65,139.5,7.329965]
[1740646370029,2.4905237,139.63,139.5,7.329965]
[1740646370225,5.0198,139.56,139.51,2.81898707]
[1740646370426,1.43235694,139.63,139.49,1.9666]
[1740646370725,5.0212,139.52,139.46,2.0135]
[1740646371121,5.0212,139.52,139.48,0.0515607]
[1740646371526,0.04992957,139.5,139.48,0.0515607]
[1740646371727,5.0215,139.51,139.48,0.0515607]
[1740646371924,0.05393043,139.5,139.48,0.0515607]
[1740646380528,0.05393043,139.5,139.49,5.0221]
[1740646380727,0.05393043,139.5,139.49,7.75325469]
[1740646380928,0.05393043,139.5,139.49,2.73115469]
[1740646381733,0.05393043,139.5,139.49,2.73131181]
[1740646381938,28.93073047,139.58,139.49,2.73131181]
[1740646382238,1.05787965,139.57,139.5,2.73131181]
[1740646382536,23.91163047,139.58,139.52,5.0207]
[1740646383134,23.91163047,139.58,139.54,0.05181326]
[1740646383536,137.05129431,139.59,139.54,0.05181326]
[1740646383840,5.0196,139.56,139.54,0.05181326]
[1740646384735,137.05129431,139.59,139.54,0.05181326]
[1740646384931,5.02,139.55,139.54,0.05181326]
[1740646385135,137.05129431,139.59,139.54,0.05181326]
[1740646385338,1.05810616,139.58,139.54,0.05181326]
[1740646386142,137.05129431,139.59,139.54,0.05181326]
[1740646386342,1.05821417,139.58,139.54,0.05181326]
[1740646387943,5.0198,139.56,139.54,0.05181326]
[1740646389050,5.02,139.55,139.54,1.326e-05]
[1740646389250,1.05786832,139.55,139.46,2.0135]
[1740646389452,5.0211,139.52,139.47,2.73128228]
[1740646389743,5.0211,139.52,139.48,2.73128228]
[1740646389950,5.0211,139.52,139.46,7.0365]
[1740646390151,5.0211,139.52,139.47,2.73138096]
[1740646390347,0.05213873,139.5,139.48,0.05242528]
[1740646390549,5.0221,139.49,139.48,0.05242528]
[1740646394555,5.0234,139.46,139.41,1.8995]
[1740646394745,5.0234,139.46,139.4,1.09794617]
[1740646394746,5.6998,139.53,139.42,2.70907779]
[1740646395052,1.05743766,139.52,139.43,2.70907779]
[1740646395253,5.024,139.44,139.4,1.09794617]
[1740646395454,1.05743766,139.52,139.4,1.09794617]
[1740646395455,197.6998,139.53,139.41,2.70778677]
[1740646395753,0.04849845,139.43,139.42,2.70778677]
[1740646395953,5.0237,139.45,139.42,2.70778677]
[1740646396151,197.6998,139.53,139.4,1.09794617]
[1740646396351,0.04856189,139.44,139.41,2.75851392]
[1740646396551,5.0228,139.48,139.42,2.70461573]
[1740646396854,0.04989642,139.44,139.41,0.04706307]
[1740646397048,0.04989642,139.44,139.42,2.7043408]
[1740646397254,0.04989642,139.44,139.41,0.04706307]
[1740646397454,0.04989642,139.44,139.42,2.70353847]
[1740646397754,0.04989642,139.44,139.41,0.04706307]
[1740646397949,0.04989642,139.44,139.42,2.70379655]
[1740646398154,0.04989642,139.44,139.41,0.04706307]
[1740646398454,0.04989642,139.44,139.42,2.70341764]
[1740646398656,0.04989642,139.44,139.41,0.04706307]
[1740646398857,0.04989642,139.44,139.43,5.0243]
[1740646399152,197.6998,139.53,139.43,7.72767903]
[1740646399354,5.0215,139.51,139.43,5.0243]
[1740646399654,5.0215,139.51,139.42,3.8323]
[1740646399853,5.0215,139.51,139.44,5.0239]
[1740646400254,0.0460165,139.49,139.46,0.04948587]
[1740646404857,5.0227,139.48,139.46,0.04948587]
[1740646405758,5.0682165,139.49,139.46,0.04948587]
[1740646406656,0.0460165,139.49,139.46,0.04948587]
[1740646407952,5.0682165,139.49,139.46,0.04948587]
[1740646408661,0.0460165,139.49,139.46,0.04948587]
[1740646409262,5.0683165,139.49,139.46,0.04948587]
[1740646410457,5.0225,139.48,139.46,0.04948587]
[1740646410958,0.0460165,139.49,139.46,0.04948587]
[1740646411159,5.0683165,139.49,139.46,0.04948587]
[1740646412360,5.0225,139.48,139.46,0.04948587]
[1740646413765,5.0683165,139.49,139.46,0.04948587]
[1740646415771,0.0460165,139.49,139.46,0.04948587]
[1740646415967,0.0460165,139.49,139.47,5.0226]
[1740646416570,0.0460165,139.49,139.46,5.07258587]
[1740646416969,0.0460165,139.49,139.46,0.04948587]
[1740646419172,5.0682165,139.49,139.46,0.04948587]
[1740646419376,0.0460165,139.49,139.46,0.04948587]
[1740646420070,0.0460165,139.49,139.46,5.07268587]
[1740646420266,0.0460165,139.49,139.46,0.04948587]
[1740646420770,0.0460165,139.49,139.47,2.70950567]
[1740646420972,0.0460165,139.49,139.46,5.07238587]
[1740646421172,0.0460165,139.49,139.47,2.70982725]
[1740646421378,0.0460165,139.49,139.46,5.07238587]
[1740646421577,0.0460165,139.49,139.47,2.70973559]
[1740646421778,0.0460165,139.49,139.46,5.07238587]
[1740646423776,0.0460165,139.49,139.47,5.0229]
[1740646426373,0.0460165,139.49,139.46,0.04948587]
[1740646426578,0.0460165,139.49,139.48,5.0225]
[1740646429181,0.0460165,139.49,139.48,7.73409945]
[1740646429984,0.0460165,139.49,139.48,5.0225]
[1740646430178,0.0460165,139.49,139.48,7.73421473]
[1740646433085,0.0460165,139.49,139.48,2.71171473]
[1740646437488,0.0460165,139.49,139.47,5.0227]
[1740646444494,0.0460165,139.49,139.48,2.71606879]
[1740646444993,0.0460165,139.49,139.48,2.71616762]
[1740646445180,0.0460165,139.49,139.48,7.73866762]
[1740646446892,0.0460165,139.49,139.48,7.73874899]
[1740646449092,5.0201,139.55,139.5,5.0216]
[1740646449294,2.0044,139.56,139.5,5.0216]
[1740646449491,5.0204,139.54,139.5,5.0216]
[1740646449685,5.0204,139.54,139.51,2.71603872]
[1740646449884,5.0204,139.54,139.49,5.0221]
[1740646450084,5.0204,139.54,139.5,2.71573134]
[1740646450284,5.0204,139.54,139.51,2.71573134]
[1740646450590,5.0204,139.54,139.5,0.04576885]
[1740646450789,5.0204,139.54,139.51,2.71562119]
[1740646450988,5.0204,139.54,139.5,0.04576885]
[1740646451193,5.0204,139.54,139.51,2.71562675]
[1740646451394,5.0204,139.54,139.5,0.04576885]
[1740646451594,5.0204,139.54,139.51,2.71542467]
[1740646451894,5.0204,139.54,139.5,0.04576885]
[1740646452096,5.0204,139.54,139.51,2.71544774]
[1740646452297,5.0204,139.54,139.5,5.06746885]
[1740646452498,5.0204,139.54,139.51,2.71492534]
[1740646452694,5.0204,139.54,139.52,2.71492534]
[1740646452997,5.0207,139.53,139.5,0.04576885]
[1740646453187,5.0207,139.53,139.51,2.71517153]
[1740646453391,5.0207,139.53,139.5,0.04576885]
[1740646453588,5.0207,139.53,139.51,2.71488467]
[1740646453792,5.0207,139.53,139.5,0.04576885]
[1740646453992,5.0207,139.53,139.51,2.7148987]
[1740646454195,5.0207,139.53,139.5,0.04576885]
[1740646454395,5.0207,139.53,139.51,2.71448582]
[1740646454596,5.0207,139.53,139.52,2.71448582]
[1740646454896,5.0207,139.53,139.52,2.71451285]
[1740646455098,5.0207,139.53,139.5,0.04576885]
[1740646455293,5.0207,139.53,139.51,2.71407512]
[1740646455493,5.0207,139.53,139.5,0.04576885]
[1740646455689,5.0207,139.53,139.51,2.71435539]
[1740646455888,5.0207,139.53,139.5,0.04576885]
[1740646456093,5.0207,139.53,139.51,2.71449491]
[1740646456297,5.0211,139.52,139.5,0.04576885]
[1740646456496,5.0211,139.52,139.51,2.71443284]
[1740646457601,137.08901159,139.57,139.51,2.71443284]
[1740646457802,5.0208,139.53,139.5,5.06756885]
[1740646457999,5.0208,139.53,139.51,2.71436874]
[1740646458195,5.0208,139.53,139.5,5.06756885]
[1740646458399,5.0208,139.53,139.51,2.71446438]
[1740646458600,5.0208,139.53,139.5,0.04576885]
[1740646458803,5.0208,139.53,139.51,2.71446442]
[1740646459101,5.0208,139.53,139.5,0.04576885]
[1740646459308,5.0208,139.53,139.51,2.71414835]
[1740646459606,5.0208,139.53,139.5,0.04576885]
[1740646460906,5.0208,139.53,139.5,5.06756885]
[1740646463803,5.0208,139.53,139.5,0.04576885]
[1740646464606,5.0214,139.51,139.5,0.04576885]
[1740646465004,5.0231,139.47,139.43,6.9727]
[1740646465209,5.0231,139.47,139.44,2.71567362]
[1740646465407,5.0231,139.47,139.43,6.9727]
[1740646465603,5.0226,139.48,139.44,2.71576432]
[1740646465805,5.0226,139.48,139.43,6.9727]
[1740646466002,5.0226,139.48,139.44,2.71590949]
[1740646466212,0.05285389,139.47,139.44,0.04625634]
[1740646466811,0.05285389,139.47,139.45,2.7153165]
[1740646467011,0.05285389,139.47,139.44,0.04625634]
[1740646467211,0.05285389,139.47,139.45,2.71480221]
[1740646467411,0.05285389,139.47,139.44,0.04625634]
[1740646467711,0.05285389,139.47,139.45,2.71478545]
[1740646467905,5.07575389,139.47,139.44,0.04625634]
[1740646468102,0.05285389,139.47,139.45,2.71480466]
[1740646468302,0.05285389,139.47,139.44,0.04625634]
[1740646468511,0.05285389,139.47,139.45,2.71424404]
[1740646468711,0.05285389,139.47,139.44,0.04625634]
[1740646468912,0.05285389,139.47,139.45,2.71425368]
[1740646469110,0.05285389,139.47,139.44,0.04625634]
[1740646469311,0.05285389,139.47,139.45,2.71385301]
[1740646469511,0.05285389,139.47,139.44,0.04625634]
[1740646469712,0.05285389,139.47,139.45,2.71372949]
[1740646469912,0.05285389,139.47,139.44,0.04625634]
[1740646470212,0.05285389,139.47,139.45,2.7137292]
[1740646470412,0.05285389,139.47,139.44,0.04625634]
[1740646470613,0.05285389,139.47,139.45,2.71324477]
[1740646470911,0.05285389,139.47,139.44,0.04625634]
[1740646471115,0.05285389,139.47,139.45,2.71324671]
[1740646471412,0.05285389,139.47,139.44,0.04625634]
[1740646471612,0.05285389,139.47,139.45,2.71279379]
[1740646471813,0.05285389,139.47,139.44,0.04625634]
[1740646472014,0.05285389,139.47,139.45,2.71279381]
[1740646472213,0.05285389,139.47,139.44,5.07015634]
[1740646472413,0.05285389,139.47,139.45,2.71237536]
[1740646472612,0.05285389,139.47,139.44,5.07015634]
[1740646472814,0.05285389,139.47,139.45,2.71237963]
[1740646473113,0.05285389,139.47,139.44,5.07015634]
[1740646473315,0.05285389,139.47,139.45,2.71217308]
[1740646473514,0.05285389,139.47,139.44,5.07015634]
[1740646473714,0.05285389,139.47,139.45,2.71202532]
[1740646474013,0.05285389,139.47,139.44,5.07015634]
[1740646474213,0.05285389,139.47,139.45,2.71202504]
[1740646474514,0.05285389,139.47,139.44,5.07015634]
[1740646474714,0.05285389,139.47,139.45,2.71166947]
[1740646474916,0.05285389,139.47,139.44,5.07015634]
[1740646476113,0.05285389,139.47,139.44,0.04625634]
[1740646476710,0.05285389,139.47,139.39,124.16034561]
[1740646476711,21.57285389,139.47,139.39,124.16034561]
[1740646476911,1.06197211,139.46,139.36,1.926]
[1740646477106,5.00667211,139.46,139.36,1.926]
[1740646477312,1.06197211,139.45,139.36,1.926]
[1740646478013,0.04990266,139.42,139.39,0.04722971]
[1740646479513,5.0253,139.41,139.39,0.04722971]
[1740646480213,0.04990266,139.42,139.39,0.04722971]
[1740646480418,5.025,139.41,139.39,0.04722971]
[1740646482021,5.0254,139.4,139.39,0.04722971]
[1740646484718,5.07470266,139.42,139.39,0.04722971]
[1740646484920,0.04990266,139.42,139.39,0.04722971]
[1740646486418,0.04990266,139.42,139.39,5.07272971]
[1740646487019,0.04990266,139.42,139.4,5.0253]
[1740646488021,0.04990266,139.42,139.39,5.07282971]
[1740646488619,0.04990266,139.42,139.39,0.04722971]
[1740646488825,5.0264,139.38,139.29,123.63234461]
[1740646489924,0.05411789,139.35,139.32,0.04866025]
[1740646491227,1.9111,139.41,139.32,0.04866025]
[1740646491527,1.9111,139.41,139.29,134.83234461]
[1740646491825,5.0255,139.4,139.33,5.0276]
[1740646492322,5.0255,139.4,139.29,134.83234461]
[1740646492525,0.05354766,139.38,139.35,0.04883368]
[1740646495428,5.07974766,139.38,139.35,0.04883368]
[1740646495830,0.05354766,139.38,139.35,0.04883368]
[1740646496124,5.0266,139.37,139.35,0.04883368]
[1740646498021,0.05354766,139.38,139.35,0.04883368]
[1740646498226,5.0268,139.37,139.35,0.04883368]
[1740646499836,5.0268,139.36,139.35,0.04883368]
[1740646500233,0.05354766,139.38,139.35,0.04883368]
[1740646500530,5.0266,139.37,139.35,0.04883368]
[1740646501636,5.07984766,139.38,139.35,0.04883368]
[1740646502325,0.05354766,139.38,139.35,0.04883368]
[1740646502532,0.05354766,139.38,139.36,5.0266]
[1740646502730,0.05354766,139.38,139.35,1.99763368]
[1740646503126,0.05354766,139.38,139.37,5.0265]
[1740646503327,5.0246,139.43,139.35,1.99763368]
[1740646503533,5.9988,139.48,139.35,1.99763368]
[1740646503728,5.0243,139.44,139.38,5.026]
[1740646503934,5.9988,139.48,139.38,5.026]
[1740646504135,1.06415985,139.46,139.37,5.0264]
[1740646504642,0.04686882,139.43,139.4,0.05284118]
[1740646505935,0.04686882,139.43,139.4,5.07804118]
[1740646506241,0.04686882,139.43,139.4,0.05284118]
[1740646507043,5.0249,139.42,139.4,0.05284118]
[1740646507244,0.04686882,139.43,139.4,0.05284118]
[1740646507636,5.0249,139.42,139.4,0.05284118]
[1740646510951,5.025,139.41,139.4,0.05284118]
[1740646516950,0.04686882,139.43,139.4,0.05284118]
[1740646517559,0.04686882,139.43,139.4,5.07814118]
[1740646518050,0.04686882,139.43,139.41,2.0161]
[1740646519254,0.04686882,139.43,139.41,8.9151]
[1740646524359,0.04686882,139.43,139.4,0.05284118]
[1740646525064,5.025,139.42,139.4,0.05284118]
[1740646525265,0.04686882,139.43,139.4,0.05284118]
[1740646525664,5.025,139.41,139.4,0.05284118]
[1740646526365,0.04686882,139.43,139.4,0.05284118]
[1740646527461,5.0249,139.42,139.4,0.05284118]
[1740646528559,0.04686882,139.43,139.4,0.05284118]
[1740646529558,0.04686882,139.43,139.41,5.025]
[1740646530871,0.04686882,139.43,139.4,5.07814118]
[1740646531172,0.04686882,139.43,139.4,0.05284118]
[1740646531365,5.07146882,139.43,139.4,0.05284118]
[1740646531677,0.04686882,139.43,139.4,0.05284118]
[1740646532369,5.07136882,139.43,139.4,0.05284118]
[1740646534961,0.04686882,139.43,139.4,0.05284118]
[1740646535371,0.04686882,139.43,139.4,5.07824118]
[1740646536170,0.04686882,139.43,139.4,0.05284118]
[1740646536766,0.04686882,139.43,139.4,5.07814118]
[1740646536972,5.07116882,139.43,139.4,0.05284118]
[1740646537173,0.04686882,139.43,139.4,0.05284118]
[1740646537367,5.025,139.41,139.4,0.05284118]
[1740646537563,0.04686882,139.43,139.35,1.9488]
[1740646537767,11.16,139.45,139.34,19.52]
[1740646537972,11.16,139.45,139.35,5.0269]
[1740646538272,1.06148617,139.44,139.35,5.0269]
[1740646538474,1.06148617,139.44,139.31,1.8864]
[1740646538676,11.16,139.45,139.36,5.0265]
[1740646538974,5.0257,139.39,139.38,0.04847042]
[1740646553994,5.0255,139.4,139.38,0.04847042]
[1740646557800,5.0257,139.39,139.38,0.04847042]
[1740646560099,0.05387172,139.41,139.38,0.04847042]
[1740646561500,5.07897172,139.41,139.38,0.04847042]
[1740646563406,0.05387172,139.41,139.38,5.07447042]
[1740646564908,0.05387172,139.41,139.38,0.04847042]
[1740646565912,5.07887172,139.41,139.38,0.04847042]
[1740646566313,0.05387172,139.41,139.38,0.04847042]
[1740646567514,5.07917172,139.41,139.38,0.04847042]
[1740646568814,5.07917172,139.41,139.38,5.07427042]
[1740646568815,0.05387172,139.41,139.38,5.07427042]
[1740646570412,0.05387172,139.41,139.4,5.0254]
[1740646573819,135.2151286,139.47,139.42,5.0244]
[1740646574521,135.2151286,139.47,139.36,5.7933]
[1740646574923,0.04583828,139.43,139.4,0.04680215]
[1740646575725,5.07013828,139.43,139.4,0.04680215]
[1740646576820,5.0248,139.42,139.4,0.04680215]
[1740646577522,5.025,139.41,139.4,0.04680215]
[1740646589837,5.0249,139.42,139.4,0.04680215]
[1740646590230,0.04583828,139.43,139.4,0.04680215]
[1740646590829,5.07033828,139.43,139.4,0.04680215]